fUSD/lending_fUSD_20260508
["ID","MTS","AMOUNT","RATE_DAILY","PERIOD"]
[421801927,1778175060000,-2670.66789,0.00041096,120]
[421801923,1778175060000,-2670.66789,0.00041096,120]
[421801924,1778175060000,-2499.672797,0.00041096,30]
[421801930,1778175060000,-2499.672797,0.00041096,30]
[421801929,1778175060000,-2670.66789,0.00041096,120]
[421801928,1778175060000,-2499.672797,0.00041096,30]
[421801938,1778175060000,-151.0,0.00041096,120]
[421801933,1778175060000,-2670.66789,0.00041096,120]
[421801931,1778175060000,-2670.66789,0.00041096,120]
[421801937,1778175060000,-2499.672797,0.00041096,30]
[421801939,1778175060000,-2670.66789,0.00041096,120]
[421801932,1778175060000,-2499.672797,0.00041096,30]
[421801936,1778175060000,-2670.66789,0.00041096,120]
[421801935,1778175060000,-151.0,0.00041096,120]
[421801951,1778175060000,-2687.543602,0.00041096,120]
[421801941,1778175060000,-151.0,0.00041096,120]
[421801940,1778175060000,-2499.672797,0.00041096,30]
[421801943,1778175060000,-2499.672797,0.00041096,30]
[421801945,1778175060000,-151.0,0.00041096,120]
[421801944,1778175060000,-2670.66789,0.00041096,120]
[421801948,1778175060000,-2499.672792,0.00041096,30]
[421801950,1778175060000,-2670.667896,0.00041096,120]
[421801947,1778175060000,-2670.66789,0.00041096,120]
[421801979,1778175060000,-135732.68779205,0.00041249,30]
[421801934,1778175060000,-2499.672797,0.00041096,30]
[421801980,1778175060000,-467.79,0.0004125,120]
[421802017,1778175060000,-2500.0,0.000415,90]
[421802022,1778175060000,-3371.34,0.000415,2]
[421802023,1778175060000,-2112.22,0.000415,2]
[421802024,1778175060000,-100000.0,0.000415,120]
[421802028,1778175060000,-503.0,0.00041554,17]
[421802018,1778175060000,-223.47,0.000415,120]
[421802016,1778175060000,-410.0,0.000415,120]
[421802025,1778175060000,-195.7,0.0004151,120]
[421802027,1778175060000,-700.0,0.00041524,120]
[421802026,1778175060000,-1300.0,0.00041524,120]
[421802021,1778175060000,-11149.37,0.000415,2]
[421802020,1778175060000,-2154.07,0.000415,90]
[421802019,1778175060000,-2000.0,0.000415,120]
[421802015,1778175060000,-3542.73904064,0.000415,30]
[421802029,1778175060000,-411.433742,0.0004159,60]
[421802039,1778175060000,-310.0,0.0004168,92]
[421802038,1778175060000,-688.31,0.00041644,120]
[421802032,1778175060000,-2112.22,0.000416,2]
[421802030,1778175060000,-11149.37,0.000416,2]
[421802035,1778175060000,-500.0,0.00041604,30]
[421802031,1778175060000,-3371.34,0.000416,2]
[421802034,1778175060000,-17283.26,0.000416,2]
[421802036,1778175060000,-301.66,0.00041604,30]
[421802040,1778175060000,-151.0,0.00041684,60]
[421802042,1778175060000,-1248.44,0.00041695,120]
[421802041,1778175060000,-1142.5,0.00041694,120]
[421802043,1778175060000,-450.35,0.00041695,120]
[421801981,1778175060000,-300.0,0.00041282,30]
[421802033,1778175060000,-22377.27,0.000416,2]
[421802014,1778175060000,-153.0,0.00041493,10]
[421802037,1778175060000,-250.0,0.00041634,120]
[421802009,1778175060000,-150.0,0.00041493,10]
[421802013,1778175060000,-150.0,0.00041493,10]
[421801982,1778175060000,-22377.27,0.000413,2]
[421801983,1778175060000,-17283.26,0.000413,2]
[421801986,1778175060000,-361.93934905,0.0004137,30]
[421801984,1778175060000,-11142.46903111,0.0004133,7]
[421801985,1778175060000,-2000.0,0.00041335,120]
[421801990,1778175060000,-212.28,0.000414,10]
[421802000,1778175060000,-150.0,0.00041493,60]
[421801992,1778175060000,-159.1,0.00041403,120]
[421801991,1778175060000,-2000.0,0.00041403,120]
[421801993,1778175060000,-250.0,0.00041407,110]
[421801999,1778175060000,-2000.0,0.00041476,120]
[421801995,1778175060000,-15732.01866991,0.00041432,31]
[421801998,1778175060000,-480.41,0.00041467,120]
[421801987,1778175060000,-150.64456526,0.00041374,120]
[421801994,1778175060000,-490.0,0.00041425,90]
[421801996,1778175060000,-157.94118008,0.00041439,2]
[421802007,1778175060000,-150.0,0.00041493,10]
[421802011,1778175060000,-150.0,0.00041493,10]
[421802008,1778175060000,-150.0,0.00041493,10]
[421802010,1778175060000,-150.0,0.00041493,10]
[421802005,1778175060000,-150.0,0.00041493,10]
[421802012,1778175060000,-150.0,0.00041493,10]
[421802004,1778175060000,-150.0,0.00041493,10]
[421802003,1778175060000,-150.0,0.00041493,10]
[421802001,1778175060000,-167.0,0.00041493,60]
[421802002,1778175060000,-150.0,0.00041493,10]
[421801997,1778175060000,-200.24,0.00041467,120]
[421802006,1778175060000,-150.0,0.00041493,10]
[421802069,1778175061000,-887.69871525,0.000419,120]
[421802071,1778175061000,-152.28886967,0.000419,120]
[421802070,1778175061000,-144730.37138666,0.000419,30]
[421802078,1778175061000,-250.0,0.00041922,120]
[421802072,1778175061000,-152.28886967,0.000419,120]
[421802073,1778175061000,-152.28886967,0.000419,120]
[421802075,1778175061000,-419.68886105,0.00041914,120]
[421802079,1778175061000,-2000.0,0.00041943,120]
[421802076,1778175061000,-150.0,0.00041917,120]
[421802077,1778175061000,-322.0,0.00041918,120]
[421802083,1778175061000,-10262.49687072,0.00041979,120]
[421802081,1778175061000,-196306.12,0.00041967,14]
[421802080,1778175061000,-5000.0,0.0004195,90]
[421802086,1778175061000,-990.0,0.00041999,2]
[421802090,1778175061000,-79676.17628746,0.00042,30]
[421802088,1778175061000,-50000.0,0.00042,45]
[421802084,1778175061000,-157.94118008,0.00041987,2]
[421802082,1778175061000,-410.96,0.00041972,120]
[421802068,1778175061000,-55243.9632405,0.000419,120]
[421802089,1778175061000,-50000.0,0.00042,120]
[421802074,1778175061000,-300.0,0.00041914,120]
[421802067,1778175061000,-333.0,0.00041897,120]
[421802053,1778175061000,-165.0,0.000418,30]
[421802066,1778175061000,-141863.2801588,0.00041893,30]
[421802087,1778175061000,-150.0,0.00041999,2]
[421802051,1778175061000,-678.97034207,0.00041781,120]
[421802047,1778175061000,-3847.31712753,0.00041747,2]
[421802044,1778175061000,-609.36,0.00041695,120]
[421802045,1778175061000,-5487.3279,0.000417,2]
[421802050,1778175061000,-195.7,0.0004178,120]
[421802046,1778175061000,-157.94118008,0.00041713,2]
[421802049,1778175061000,-6044.0,0.00041768,2]
[421802048,1778175061000,-477.14,0.0004175,120]
[421802063,1778175061000,-151.7303618,0.00041833,2]
[421802052,1778175061000,-1000.0,0.000418,30]
[421802054,1778175061000,-1982.46,0.000418,120]
[421802056,1778175061000,-411.433742,0.00041801,60]
[421802060,1778175061000,-300.0,0.00041814,30]
[421802062,1778175061000,-484.6095977,0.00041825,2]
[421802059,1778175061000,-3927.2385784,0.00041813,2]
[421802057,1778175061000,-250.0,0.00041808,120]
[421802061,1778175061000,-905.2092919,0.00041821,2]
[421802055,1778175061000,-1000.0,0.000418,120]
[421802058,1778175061000,-200.0,0.0004181,120]
[421802064,1778175061000,-150.0,0.00041834,2]
[421802065,1778175061000,-1211.20017953,0.00041888,120]
[421802085,1778175061000,-4274.72600511,0.0004199,60]
[421802093,1778175061000,-50000.0,0.00042,120]
[421802124,1778175061000,-20000.0,0.00042,120]
[421802120,1778175061000,-225643.71458773,0.00042,30]
[421802113,1778175061000,-334.87313871,0.00042,120]
[421802123,1778175061000,-22209.55072017,0.00042,120]
[421802137,1778175061000,-1000.0,0.00042,120]
[421802118,1778175061000,-446000.0,0.00042,120]
[421802121,1778175061000,-100292.48845513,0.00042,10]
[421802125,1778175061000,-500.0,0.00042,2]
[421802134,1778175061000,-4997.0,0.00042,7]
[421802133,1778175061000,-26898.18390878,0.00042,120]
[421802122,1778175061000,-50000.0,0.00042,120]
[421802135,1778175061000,-207.47522266,0.00042,5]
[421802126,1778175061000,-11330.59868737,0.00042,120]
[421802132,1778175061000,-50000.0,0.00042,120]
[421802129,1778175061000,-7867.75955445,0.00042,120]
[421802127,1778175061000,-3000.0,0.00042,120]
[421802128,1778175061000,-16137.95681956,0.00042,10]
[421802130,1778175061000,-13239.7739976,0.00042,120]
[421802131,1778175061000,-100000.0,0.00042,120]
[421802138,1778175061000,-850.04,0.00042,14]
[421802091,1778175061000,-50000.0,0.00042,120]
[421802136,1778175061000,-1996.96756992,0.00042,30]
[421802114,1778175061000,-14179.2315157,0.00042,2]
[421802116,1778175061000,-21000.0,0.00042,3]
[421802115,1778175061000,-5000.0,0.00042,120]
[421802097,1778175061000,-1000000.0,0.00042,120]
[421802094,1778175061000,-31631.87314308,0.00042,120]
[421802095,1778175061000,-1000000.0,0.00042,120]
[421802096,1778175061000,-1000000.0,0.00042,120]
[421802092,1778175061000,-50000.0,0.00042,120]
[421802117,1778175061000,-30328.34421634,0.00042,30]
[421802100,1778175061000,-1000000.0,0.00042,120]
[421802099,1778175061000,-1000000.0,0.00042,120]
[421802101,1778175061000,-627215.0,0.00042,120]
[421802103,1778175061000,-25326.47208139,0.00042,2]
[421802098,1778175061000,-1000000.0,0.00042,120]
[421802104,1778175061000,-170.0,0.00042,3]
[421802105,1778175061000,-206898.5,0.00042,7]
[421802106,1778175061000,-5000.0,0.00042,120]
[421802112,1778175061000,-44600.0,0.00042,10]
[421802108,1778175061000,-122717.27420551,0.00042,120]
[421802109,1778175061000,-233.68350765,0.00042,30]
[421802107,1778175061000,-10214.94,0.00042,7]
[421802110,1778175061000,-5500.0,0.00042,47]
[421802111,1778175061000,-2000.0,0.00042,120]
[421802102,1778175061000,-583.32106533,0.00042,5]
[421802119,1778175061000,-300.0,0.00042,30]
[421802176,1778175062000,-411.433742,0.00042222,60]
[421802177,1778175062000,-250.0,0.00042227,120]
[421802181,1778175062000,-200.99645,0.00042236,120]
[421802180,1778175062000,-200.99645,0.00042236,120]
[421802171,1778175062000,-32124.81935219,0.000422,2]
[421802174,1778175062000,-250.0,0.00042203,120]
[421802179,1778175062000,-200.99645,0.00042236,120]
[421802173,1778175062000,-2222.9626,0.000422,90]
[421802175,1778175062000,-250.0,0.00042217,120]
[421802172,1778175062000,-200.0,0.000422,18]
[421802166,1778175062000,-5000.0,0.00042192,120]
[421802178,1778175062000,-250.0,0.00042234,120]
[421802183,1778175062000,-747.507,0.0004224,120]
[421802203,1778175062000,-250.0,0.00042261,30]
[421802186,1778175062000,-500.0,0.00042248,30]
[421802182,1778175062000,-250.0,0.0004224,120]
[421802185,1778175062000,-353.36,0.00042247,120]
[421802187,1778175062000,-1613.0535,0.00042248,30]
[421802190,1778175062000,-486.7,0.0004225,120]
[421802192,1778175062000,-21405.42182689,0.00042254,30]
[421802188,1778175062000,-150.0,0.00042249,4]
[421802189,1778175062000,-161.0,0.0004225,120]
[421802193,1778175062000,-21405.42182689,0.00042254,30]
[421802191,1778175062000,-21405.42182689,0.00042254,30]
[421802194,1778175062000,-151.0,0.00042254,120]
[421802164,1778175062000,-151.16827287,0.00042191,120]
[421802184,1778175062000,-250.0,0.00042244,120]
[421802169,1778175062000,-321.69,0.000422,120]
[421802143,1778175062000,-150.0,0.00042001,2]
[421802165,1778175062000,-5000.0,0.00042192,120]
[421802146,1778175062000,-250.0,0.00042012,120]
[421802147,1778175062000,-200.50552662,0.00042049,2]
[421802148,1778175062000,-9076.58642697,0.0004205,2]
[421802139,1778175062000,-167.22,0.00042,30]
[421802141,1778175062000,-251.25,0.00042,120]
[421802145,1778175062000,-411.433742,0.00042011,60]
[421802140,1778175062000,-222.62,0.00042,30]
[421802142,1778175062000,-21405.42182689,0.00042,30]
[421802144,1778175062000,-1383.4430196,0.0004201,2]
[421802151,1778175062000,-1300.0,0.00042072,120]
[421802150,1778175062000,-5000.0,0.00042067,15]
[421802160,1778175062000,-400.5552866,0.00042167,2]
[421802167,1778175062000,-7109.6,0.00042192,120]
[421802159,1778175062000,-400.5552866,0.00042167,2]
[421802152,1778175062000,-700.0,0.00042072,120]
[421802155,1778175062000,-160.0,0.000421,79]
[421802153,1778175062000,-250.0,0.00042077,120]
[421802156,1778175062000,-160.0,0.000421,79]
[421802154,1778175062000,-525.9029,0.000421,120]
[421802158,1778175062000,-250.0,0.00042159,120]
[421802157,1778175062000,-250.0,0.00042124,120]
[421802161,1778175062000,-400.5552866,0.00042167,2]
[421802163,1778175062000,-250.0,0.00042185,120]
[421802168,1778175062000,-500.0,0.00042199,90]
[421802170,1778175062000,-5716.62374371,0.000422,2]
[421802162,1778175062000,-288.41,0.00042177,2]
[421802149,1778175062000,-195.7,0.0004205,120]
[421802205,1778175062000,-1656.06,0.00042264,120]
[421802255,1778175062000,-1347.0,0.00042267,30]
[421802196,1778175062000,-154.0,0.00042254,120]
[421802227,1778175062000,-51533.13922662,0.00042267,30]
[421802228,1778175062000,-106348.08269179,0.00042267,30]
[421802233,1778175062000,-5871.95598909,0.00042267,30]
[421802232,1778175062000,-754.72277737,0.00042267,30]
[421802243,1778175062000,-554.59880766,0.00042267,30]
[421802236,1778175062000,-265.76415493,0.00042267,30]
[421802235,1778175062000,-595.98673518,0.00042267,30]
[421802234,1778175062000,-520.2672173,0.00042267,30]
[421802242,1778175062000,-938.24690421,0.00042267,30]
[421802241,1778175062000,-437.78141733,0.00042267,30]
[421802239,1778175062000,-590.84308848,0.00042267,30]
[421802237,1778175062000,-204.33185211,0.00042267,30]
[421802229,1778175062000,-64835.96455341,0.00042267,30]
[421802238,1778175062000,-1466.24303394,0.00042267,30]
[421802244,1778175062000,-233.5,0.00042267,30]
[421802247,1778175062000,-254.18642352,0.00042267,30]
[421802250,1778175062000,-550.91599843,0.00042267,30]
[421802246,1778175062000,-341.05541765,0.00042267,30]
[421802248,1778175062000,-336.11991275,0.00042267,50]
[421802252,1778175062000,-19834.49508367,0.00042267,5]
[421802254,1778175062000,-100000.0,0.00042267,30]
[421802253,1778175062000,-25112.85,0.00042267,30]
[421802251,1778175062000,-13430.08,0.00042267,30]
[421802249,1778175062000,-225.35829197,0.00042267,30]
[421802256,1778175062000,-6083.93984348,0.00042267,30]
[421802195,1778175062000,-163.0,0.00042254,120]
[421802245,1778175062000,-16803.24883048,0.00042267,20]
[421802225,1778175062000,-129000.0,0.00042267,10]
[421802240,1778175062000,-379.99582812,0.00042267,30]
[421802226,1778175062000,-68987.75978386,0.00042267,30]
[421802197,1778175062000,-288.0,0.00042254,120]
[421802224,1778175062000,-1004662.26725282,0.00042267,30]
[421802200,1778175062000,-500.0,0.00042255,95]
[421802199,1778175062000,-158.0,0.00042254,120]
[421802201,1778175062000,-157.94118008,0.00042261,2]
[421802204,1778175062000,-301.96192583,0.00042264,120]
[421802202,1778175062000,-240.60663194,0.00042261,2]
[421802198,1778175062000,-375.0,0.00042254,120]
[421802206,1778175062000,-169.20519531,0.00042264,120]
[421802212,1778175062000,-50000.0,0.00042266,71]
[421802211,1778175062000,-50000.0,0.00042266,70]
[421802209,1778175062000,-50000.0,0.00042266,68]
[421802210,1778175062000,-50000.0,0.00042266,69]
[421802213,1778175062000,-1165.05801855,0.00042266,120]
[421802207,1778175062000,-469.14022482,0.00042264,120]
[421802217,1778175062000,-152.0,0.00042267,120]
[421802221,1778175062000,-50000.0,0.00042267,30]
[421802223,1778175062000,-26100.87527769,0.00042267,30]
[421802231,1778175062000,-205854.3508588,0.00042267,30]
[421802230,1778175062000,-91567.19600473,0.00042267,30]
[421802219,1778175062000,-16479.98447371,0.00042267,30]
[421802220,1778175062000,-152154.70701206,0.00042267,30]
[421802222,1778175062000,-14174.27428411,0.00042267,30]
[421802215,1778175062000,-151.0,0.00042267,120]
[421802216,1778175062000,-155.0,0.00042267,120]
[421802208,1778175062000,-50000.0,0.00042266,67]
[421802214,1778175062000,-154.0,0.00042267,120]
[421802218,1778175062000,-16721241.92959454,0.00042267,30]
[421802299,1778175063000,-234.32963816,0.00042267,2]
[421802300,1778175063000,-177.83700812,0.00042267,2]
[421802293,1778175063000,-994.7868482,0.00042267,2]
[421802295,1778175063000,-3324.23383731,0.00042267,2]
[421802298,1778175063000,-4228920.57781371,0.00042267,30]
[421802296,1778175063000,-179.73800198,0.00042267,2]
[421802303,1778175063000,-1308.75026878,0.00042267,2]
[421802302,1778175063000,-384.16532359,0.00042267,2]
[421802301,1778175063000,-501.27029708,0.00042267,3]
[421802289,1778175063000,-499.33207186,0.00042267,2]
[421802290,1778175063000,-188.64755838,0.00042267,2]
[421802291,1778175063000,-643.0,0.00042267,2]
[421802292,1778175063000,-2032.69813658,0.00042267,4]
[421802297,1778175063000,-550.0,0.00042267,2]
[421802314,1778175063000,-493.11677849,0.00042267,2]
[421802304,1778175063000,-1057.59729909,0.00042267,2]
[421802308,1778175063000,-219.89494217,0.00042267,2]
[421802307,1778175063000,-641.42588568,0.00042267,2]
[421802309,1778175063000,-1092.22697446,0.00042267,2]
[421802305,1778175063000,-677.46366612,0.00042267,2]
[421802306,1778175063000,-622.46814964,0.00042267,2]
[421802312,1778175063000,-1100.0,0.00042267,2]
[421802313,1778175063000,-933.98882107,0.00042267,2]
[421802311,1778175063000,-350.28288654,0.00042267,2]
[421802310,1778175063000,-2500.0,0.00042267,2]
[421802315,1778175063000,-630.74670474,0.00042267,2]
[421802316,1778175063000,-1625.34655494,0.00042267,2]
[421802286,1778175063000,-1221.0,0.00042267,4]
[421802294,1778175063000,-587.33308819,0.00042267,2]
[421802287,1778175063000,-2253.04633992,0.00042267,2]
[421802267,1778175063000,-1210.0,0.00042267,2]
[421802288,1778175063000,-766.23605174,0.00042267,2]
[421802317,1778175063000,-561.44879025,0.00042267,2]
[421802257,1778175063000,-275.20216765,0.00042267,30]
[421802261,1778175063000,-12175.94275935,0.00042267,30]
[421802258,1778175063000,-1000.0,0.00042267,30]
[421802262,1778175063000,-1118.0,0.00042267,30]
[421802259,1778175063000,-14630.0,0.00042267,30]
[421802260,1778175063000,-15048.23835881,0.00042267,30]
[421802265,1778175063000,-5000.0,0.00042267,30]
[421802263,1778175063000,-241535.86622581,0.00042267,30]
[421802264,1778175063000,-1000.0,0.00042267,30]
[421802266,1778175063000,-400.69988093,0.00042267,2]
[421802279,1778175063000,-1719.47464807,0.00042267,2]
[421802269,1778175063000,-2872.22653107,0.00042267,2]
[421802285,1778175063000,-1344.45699759,0.00042267,2]
[421802268,1778175063000,-720.40724758,0.00042267,2]
[421802271,1778175063000,-990.73577254,0.00042267,2]
[421802272,1778175063000,-1558.01641515,0.00042267,2]
[421802277,1778175063000,-2773.71990933,0.00042267,2]
[421802273,1778175063000,-1055.148481,0.00042267,2]
[421802274,1778175063000,-503.04123997,0.00042267,2]
[421802278,1778175063000,-155.1011026,0.00042267,2]
[421802275,1778175063000,-1525.59220172,0.00042267,2]
[421802276,1778175063000,-2518.96237873,0.00042267,2]
[421802280,1778175063000,-255.38681394,0.00042267,2]
[421802282,1778175063000,-1292.96635327,0.00042267,2]
[421802283,1778175063000,-1067.69157573,0.00042267,2]
[421802284,1778175063000,-558.94107674,0.00042267,2]
[421802281,1778175063000,-500.0,0.00042267,2]
[421802270,1778175063000,-356.94331341,0.00042267,2]
[421802319,1778175063000,-373.55762515,0.00042267,2]
[421802335,1778175063000,-518.48985548,0.00042267,2]
[421802330,1778175063000,-897.38376883,0.00042267,2]
[421802350,1778175063000,-8732807.05894996,0.00042267,30]
[421802354,1778175063000,-9741.2306805,0.00042267,30]
[421802352,1778175063000,-6669.82210255,0.00042267,5]
[421802351,1778175063000,-6607.36510156,0.00042267,30]
[421802357,1778175063000,-16754.99873767,0.00042267,30]
[421802359,1778175063000,-199227.45793736,0.00042267,30]
[421802360,1778175063000,-10000.0,0.00042267,3]
[421802361,1778175063000,-83041.06259,0.00042267,30]
[421802363,1778175063000,-230.092266,0.00042267,30]
[421802362,1778175063000,-1716548.0,0.00042267,30]
[421802366,1778175063000,-5467.71901476,0.00042267,30]
[421802367,1778175063000,-167.22793095,0.00042267,30]
[421802364,1778175063000,-6189.5851787,0.00042267,30]
[421802353,1778175063000,-10965.10499072,0.00042267,3]
[421802365,1778175063000,-1875930.90410487,0.00042267,30]
[421802368,1778175063000,-164.60856141,0.00042267,35]
[421802369,1778175063000,-1787.43041129,0.00042267,30]
[421802371,1778175063000,-2474.10851637,0.00042267,30]
[421802381,1778175063000,-5532038.07923151,0.00042267,30]
[421802373,1778175063000,-165.44901678,0.00042267,30]
[421802374,1778175063000,-4299.85720706,0.00042267,30]
[421802372,1778175063000,-621.79408818,0.00042267,30]
[421802370,1778175063000,-168.19886338,0.00042267,30]
[421802380,1778175063000,-499.0,0.00042267,30]
[421802375,1778175063000,-237.8,0.00042267,30]
[421802377,1778175063000,-764.71812491,0.00042267,30]
[421802376,1778175063000,-242.98146119,0.00042267,30]
[421802329,1778175063000,-2227.21969779,0.00042267,2]
[421802358,1778175063000,-18309.1451171,0.00042267,30]
[421802349,1778175063000,-30672.34479346,0.00042267,30]
[421802378,1778175063000,-688.35007043,0.00042267,30]
[421802346,1778175063000,-500.0,0.00042267,2]
[421802348,1778175063000,-797897.61753078,0.00042267,30]
[421802322,1778175063000,-1145.12473677,0.00042267,2]
[421802323,1778175063000,-279.83686385,0.00042267,2]
[421802321,1778175063000,-1880.89944353,0.00042267,2]
[421802318,1778175063000,-1036.02415858,0.00042267,2]
[421802324,1778175063000,-412.2707277,0.00042267,2]
[421802328,1778175063000,-289.65372912,0.00042267,2]
[421802326,1778175063000,-207.76613042,0.00042267,2]
[421802327,1778175063000,-884.26939471,0.00042267,2]
[421802325,1778175063000,-2499.62471288,0.00042267,2]
[421802331,1778175063000,-471.76204879,0.00042267,2]
[421802333,1778175063000,-610.0,0.00042267,2]
[421802334,1778175063000,-362.98174587,0.00042267,2]
[421802339,1778175063000,-201.39200732,0.00042267,2]
[421802320,1778175063000,-2258.26341651,0.00042267,2]
[421802379,1778175063000,-6861.31955052,0.00042267,30]
[421802336,1778175063000,-204.32847618,0.00042267,2]
[421802347,1778175063000,-1990.0,0.00042267,2]
[421802355,1778175063000,-15371.73456828,0.00042267,3]
[421802344,1778175063000,-1602.43998742,0.00042267,2]
[421802345,1778175063000,-180.0,0.00042267,2]
[421802341,1778175063000,-379.0,0.00042267,2]
[421802356,1778175063000,-41431.90918164,0.00042267,30]
[421802342,1778175063000,-468.03218019,0.00042267,2]
[421802337,1778175063000,-199.999999,0.00042267,30]
[421802340,1778175063000,-1529.9608692,0.00042267,2]
[421802343,1778175063000,-160.63342359,0.00042267,2]
[421802332,1778175063000,-150.0,0.00042267,2]
[421802338,1778175063000,-760.72570169,0.00042267,2]
[421802421,1778175064000,-174465.49742508,0.00042267,2]
[421802422,1778175064000,-15316.61619989,0.00042267,2]
[421802430,1778175064000,-12961.92782235,0.00042267,2]
[421802429,1778175064000,-5834.49175228,0.00042267,2]
[421802419,1778175064000,-10983.49152631,0.00042267,2]
[421802415,1778175064000,-23497.77666556,0.00042267,2]
[421802420,1778175064000,-1079338.86241291,0.00042267,30]
[421802416,1778175064000,-13167.41456783,0.00042267,2]
[421802412,1778175064000,-58827.55435278,0.00042267,2]
[421802413,1778175064000,-9477.29656078,0.00042267,2]
[421802418,1778175064000,-15173.12513902,0.00042267,2]
[421802428,1778175064000,-20810.40085902,0.00042267,2]
[421802423,1778175064000,-6000.0,0.00042267,2]
[421802434,1778175064000,-20325.89297441,0.00042267,7]
[421802425,1778175064000,-3921.01096943,0.00042267,2]
[421802427,1778175064000,-12549.61804338,0.00042267,2]
[421802426,1778175064000,-15180.66263805,0.00042267,2]
[421802431,1778175064000,-13696.15512221,0.00042267,2]
[421802435,1778175064000,-240.61155125,0.00042267,30]
[421802432,1778175064000,-20000.0,0.00042267,2]
[421802436,1778175064000,-256.3,0.00042267,30]
[421802433,1778175064000,-5415.46790646,0.00042267,2]
[421802442,1778175064000,-917.45306619,0.00042267,30]
[421802443,1778175064000,-3675.45027369,0.00042267,30]
[421802441,1778175064000,-38454.34031665,0.00042267,30]
[421802414,1778175064000,-3509.36078657,0.00042267,2]
[421802439,1778175064000,-353.0,0.00042267,2]
[421802424,1778175064000,-7985.7334351,0.00042267,2]
[421802417,1778175064000,-816309.62351347,0.00042267,2]
[421802406,1778175064000,-172082.1790548,0.00042267,2]
[421802411,1778175064000,-221977.42684272,0.00042267,2]
[421802438,1778175064000,-152.14576022,0.00042267,30]
[421802382,1778175064000,-8977938.88019898,0.00042267,30]
[421802383,1778175064000,-30864.7363187,0.00042267,2]
[421802385,1778175064000,-1094765.2018687,0.00042267,30]
[421802389,1778175064000,-199.84199944,0.00042267,2]
[421802386,1778175064000,-50000.0,0.00042267,50]
[421802393,1778175064000,-5109.0,0.00042267,30]
[421802384,1778175064000,-8785563.45632214,0.00042267,30]
[421802392,1778175064000,-1762.7,0.00042267,15]
[421802391,1778175064000,-10082.75271255,0.00042267,14]
[421802390,1778175064000,-10000.0,0.00042267,50]
[421802388,1778175064000,-1000000.0,0.00042267,50]
[421802405,1778175064000,-207254.062713,0.00042267,2]
[421802395,1778175064000,-5000.0,0.00042267,30]
[421802396,1778175064000,-1299999.0,0.00042267,30]
[421802398,1778175064000,-2792.0,0.00042267,30]
[421802403,1778175064000,-530726.70023319,0.00042267,30]
[421802402,1778175064000,-53895.97619101,0.00042267,31]
[421802401,1778175064000,-5381.42804715,0.00042267,4]
[421802399,1778175064000,-1000000.0,0.00042267,30]
[421802394,1778175064000,-5000.0,0.00042267,30]
[421802404,1778175064000,-14047.94423579,0.00042267,2]
[421802397,1778175064000,-5010.47073848,0.00042267,2]
[421802400,1778175064000,-7029.87179687,0.00042267,4]
[421802409,1778175064000,-52233.92992375,0.00042267,2]
[421802407,1778175064000,-650399.29327299,0.00042267,2]
[421802410,1778175064000,-5321.30475387,0.00042267,2]
[421802408,1778175064000,-125208.63673998,0.00042267,2]
[421802437,1778175064000,-215245.03,0.00042267,30]
[421802387,1778175064000,-1000000.0,0.00042267,55]
[421802445,1778175064000,-158.23975468,0.00042267,30]
[421802470,1778175064000,-60000.0,0.00042267,35]
[421802471,1778175064000,-60000.0,0.00042267,40]
[421802477,1778175064000,-855.0929,0.00042267,120]
[421802472,1778175064000,-60000.0,0.00042267,45]
[421802488,1778175064000,-855.0929,0.00042267,120]
[421802489,1778175064000,-855.0929,0.00042267,120]
[421802493,1778175064000,-855.0929,0.00042267,120]
[421802482,1778175064000,-855.0929,0.00042267,120]
[421802483,1778175064000,-855.0929,0.00042267,120]
[421802491,1778175064000,-855.0929,0.00042267,120]
[421802492,1778175064000,-855.0929,0.00042267,120]
[421802486,1778175064000,-855.0929,0.00042267,120]
[421802485,1778175064000,-855.0929,0.00042267,120]